[Event "European Online Club-ch-G 2021"]
[Site "Online"]
[Date "2021.03.27"]
[Round "1.15"]
[White "Kostolansky, Sebastian Lukas"]
[Black "Gasimov, Parviz"]
[Result "1-0"]
[ECO "C07"]
[WhiteElo "2393"]
[BlackElo "2337"]
[Annotator "NA"]
[PlyCount "47"]
[EventDate "2021.03.27"]
[EventType "team-tourn"]
[EventCountry "NET"]
[SourceTitle "playchess.com"]
[Source "ChessBase"]
[SourceQuality "1"]
[TimeControl "900+5"]

1. e4 {[%emt 0:00:00]} e6 {[%emt 0:00:11]} 2. d4 {[%emt 0:00:04]} d5 {[%emt 0:00:04]} 3. Nd2 {[%emt 0:00:06]} c5 {[%emt 0:00:07]} 4. exd5 {[%emt 0:00:31]} Qxd5 {[%emt 0:00:08]} 5. dxc5 {[%emt 0:00:13]} Bxc5 {[%emt 0:01:16]} 6. Ngf3 {[%emt 0:00:04]} Nf6 {[%emt 0:00:04]} 7. Bd3 {[%emt 0:00:04]} O-O {[%emt 0:00:41]} 8. Qe2 {[%emt 0:01:05]} Nc6 {[%emt 0:00:30]} 9. Ne4 {[%emt 0:01:01]} Be7 {[%emt 0:00:14]} 10. O-O {[%emt 0:00:47]} Nxe4 {[%emt 0:00:54]} 11. Bxe4 {[%emt 0:00:27]} Qh5 {[%emt 0:00:05]} 12. c3 {[%emt 0:01:32]} Bd7 {[%emt 0:01:34]} 13. Re1 {[%emt 0:00:43]} Bd6 {[%emt 0:01:25]} 14. Qd1 {[%emt 0:02:42]} f5 {[%emt 0:02:39]} 15. Bc2 {[%emt 0:01:01]} Rf6 {[%emt 0:02:37]} 16. Qxd6 {[%emt 0:00:27]} Rg6 {[%emt 0:00:04]} 17. Bd1 {[%emt 0:01:57]} e5 {[%emt 0:03:21]} 18. Qxd7 {[%emt 0:01:38]} Rd8 {[%emt 0:00:05]} 19. Nxe5 {[%emt 0:00:38]} Rxd7 {[%emt 0:00:20]} 20. Bxh5 {[%emt 0:00:04]} Re6 {[%emt 0:00:05]} 21. Bf4 {[%emt 0:00:13]} Nxe5 {[%emt 0:00:04]} 22. Rxe5 {[%emt 0:00:06]} Rxe5 {[%emt 0:00:04]} 23. Bxe5 {[%emt 0:00:01]} Rd2 {[%emt 0:00:02]} 24. Rd1 {[%emt 0:00:07]} 1-0

[Event "European Online Club-ch-G 2021"]
[Site "Online"]
[Date "2021.03.27"]
[Round "1.16"]
[White "Hasanzade, Toghrul"]
[Black "Haring, Filip"]
[Result "1-0"]
[ECO "B15"]
[WhiteElo "2322"]
[BlackElo "2376"]
[Annotator "NA"]
[PlyCount "95"]
[EventDate "2021.03.27"]
[EventType "team-tourn"]
[EventCountry "NET"]
[SourceTitle "playchess.com"]
[Source "ChessBase"]
[SourceQuality "1"]
[TimeControl "900+5"]

1. e4 {[%emt 0:00:59]} c6 {[%emt 0:00:06]} 2. d4 {[%emt 0:00:04]} d5 {[%emt 0:00:02]} 3. Nc3 {[%emt 0:00:03]} dxe4 {[%emt 0:00:03]} 4. Nxe4 {[%emt 0:00:02]} Nf6 {[%emt 0:00:04]} 5. Nxf6+ {[%emt 0:00:06]} exf6 {[%emt 0:00:02]} 6. c3 {[%emt 0:00:02]} Bd6 {[%emt 0:00:03]} 7. Bd3 {[%emt 0:00:07]} O-O {[%emt 0:00:04]} 8. Ne2 {[%emt 0:00:29]} Re8 {[%emt 0:00:37]} 9. Qc2 {[%emt 0:00:11]} h5 {[%emt 0:00:19]} 10. O-O {[%emt 0:00:20]} h4 {[%emt 0:00:42]} 11. h3 {[%emt 0:00:17]} Nd7 {[%emt 0:01:02]} 12. Re1 {[%emt 0:00:08]} Nf8 {[%emt 0:00:29]} 13. Be3 {[%emt 0:00:26]} Qc7 {[%emt 0:02:35]} 14. Qd2 {[%emt 0:00:25]} Be6 {[%emt 0:00:38]} 15. Bf4 {[%emt 0:00:13]} Rad8 {[%emt 0:01:11]} 16. Bxd6 {[%emt 0:00:08]} Qxd6 {[%emt 0:00:09]} 17. Qf4 {[%emt 0:00:13]} Qxf4 {[%emt 0:01:03]} 18. Nxf4 {[%emt 0:00:04]} g6 {[%emt 0:01:40]} 19. Re3 {[%emt 0:00:21]} Bd7 {[%emt 0:01:46]} 20. Rae1 {[%emt 0:00:09]} Rxe3 {[%emt 0:00:31]} 21. fxe3 {[%emt 0:00:07]} Kg7 {[%emt 0:00:29]} 22. Kf2 {[%emt 0:00:05]} Ne6 {[%emt 0:00:33]} 23. Bc4 {[%emt 0:00:20]} Re8 {[%emt 0:01:04]} 24. Bxe6 {[%emt 0:01:26]} Bxe6 {[%emt 0:00:14]} 25. b3 {[%emt 0:00:02]} Bf5 {[%emt 0:00:36]} 26. c4 {[%emt 0:00:14]} g5 {[%emt 0:00:25]} 27. Ne2 {[%emt 0:00:03]} Be4 {[%emt 0:00:15]} 28. Nc3 {[%emt 0:00:02]} f5 {[%emt 0:00:05]} 29. Rd1 {[%emt 0:00:13]} Kf6 {[%emt 0:00:09]} 30. d5 {[%emt 0:00:11]} cxd5 {[%emt 0:00:14]} 31. Nxd5+ {[%emt 0:00:32]} Bxd5 {[%emt 0:00:09]} 32. Rxd5 {[%emt 0:00:03]} Ke6 {[%emt 0:00:06]} 33. Kf3 {[%emt 0:00:36]} Re7 {[%emt 0:00:09]} 34. a4 {[%emt 0:00:07]} b6 {[%emt 0:00:03]} 35. a5 {[%emt 0:00:10]} Rd7 {[%emt 0:00:12]} 36. axb6 {[%emt 0:00:13]} axb6 {[%emt 0:00:02]} 37. Rxd7 {[%emt 0:00:23]} Kxd7 {[%emt 0:00:01]} 38. e4 {[%emt 0:00:17]} fxe4+ {[%emt 0:00:07]} 39. Kxe4 {[%emt 0:00:02]} Ke6 {[%emt 0:00:02]} 40. b4 {[%emt 0:00:11]} f5+ {[%emt 0:00:03]} 41. Kd4 {[%emt 0:00:03]} g4 {[%emt 0:00:08]} 42. c5 {[%emt 0:01:13]} bxc5+ {[%emt 0:00:02]} 43. bxc5 {[%emt 0:00:03]} f4 {[%emt 0:00:06]} 44. hxg4 {[%emt 0:00:18]} f3 {[%emt 0:00:04]} 45. Ke3 {[%emt 0:00:02]} fxg2 {[%emt 0:00:07]} 46. Kf2 {[%emt 0:00:01]} h3 {[%emt 0:00:07]} 47. g5 {[%emt 0:00:10]} Kf5 {[%emt 0:00:06]} 48. c6 {[%emt 0:00:02]} 1-0

[Event "European Online Club-ch-G 2021"]
[Site "Online"]
[Date "2021.03.27"]
[Round "1.17"]
[White "Harvey, Marcus R"]
[Black "Borhy, Marcell"]
[Result "1-0"]
[ECO "D24"]
[WhiteElo "2440"]
[BlackElo "2392"]
[Annotator "NA"]
[PlyCount "185"]
[EventDate "2021.03.27"]
[EventType "team-tourn"]
[EventCountry "NET"]
[SourceTitle "playchess.com"]
[Source "ChessBase"]
[SourceQuality "1"]
[TimeControl "900+5"]

1. d4 {[%emt 0:00:00]} d5 {[%emt 0:00:24]} 2. Nf3 {[%emt 0:00:03]} Nf6 {[%emt 0:00:04]} 3. c4 {[%emt 0:00:04]} dxc4 {[%emt 0:00:23]} 4. e3 {[%emt 0:00:13]} a6 {[%emt 0:00:03]} 5. a4 {[%emt 0:00:40]} Bg4 {[%emt 0:00:33]} 6. Bxc4 {[%emt 0:00:06]} e6 {[%emt 0:00:06]} 7. h3 {[%emt 0:00:16]} Bh5 {[%emt 0:00:12]} 8. Nc3 {[%emt 0:00:15]} Nc6 {[%emt 0:00:11]} 9. O-O {[%emt 0:00:38]} Bd6 {[%emt 0:00:20]} 10. Be2 {[%emt 0:00:39]} O-O {[%emt 0:01:14]} 11. b3 {[%emt 0:01:19]} Qe7 {[%emt 0:02:12]} 12. Bb2 {[%emt 0:00:21]} Rad8 {[%emt 0:00:38]} 13. Ne5 {[%emt 0:01:34]} Bxe2 {[%emt 0:02:11]} 14. Nxc6 {[%emt 0:00:02]} Bxd1 {[%emt 0:01:07]} 15. Nxe7+ {[%emt 0:00:03]} Bxe7 {[%emt 0:00:01]} 16. Rfxd1 {[%emt 0:00:01]} Rd7 {[%emt 0:00:38]} 17. Kf1 {[%emt 0:01:07]} Rfd8 {[%emt 0:00:15]} 18. Rac1 {[%emt 0:00:26]} Kf8 {[%emt 0:00:52]} 19. Ke2 {[%emt 0:00:18]} c5 {[%emt 0:00:48]} 20. dxc5 {[%emt 0:00:08]} Bxc5 {[%emt 0:00:29]} 21. Rxd7 {[%emt 0:00:06]} Rxd7 {[%emt 0:00:07]} 22. Nb5 {[%emt 0:00:17]} Bb4 {[%emt 0:00:23]} 23. Nd4 {[%emt 0:01:11]} Ke7 {[%emt 0:00:26]} 24. Rc4 {[%emt 0:00:10]} Bd6 {[%emt 0:00:09]} 25. Nf3 {[%emt 0:01:27]} g6 {[%emt 0:00:50]} 26. Ne5 {[%emt 0:01:33]} Rc7 {[%emt 0:00:13]} 27. Rxc7+ {[%emt 0:00:29]} Bxc7 {[%emt 0:00:02]} 28. Ba3+ {[%emt 0:00:07]} Ke8 {[%emt 0:00:02]} 29. Nc4 {[%emt 0:00:04]} Kd7 {[%emt 0:00:05]} 30. Kd3 {[%emt 0:00:13]} b5 {[%emt 0:00:12]} 31. axb5 {[%emt 0:00:05]} axb5 {[%emt 0:00:01]} 32. Nd2 {[%emt 0:00:01]} Nd5 {[%emt 0:00:05]} 33. Ne4 {[%emt 0:00:04]} h5 {[%emt 0:00:15]} 34. Kd4 {[%emt 0:00:56]} Kc6 {[%emt 0:00:40]} 35. Ng5 {[%emt 0:00:06]} e5+ {[%emt 0:00:01]} 36. Kd3 {[%emt 0:00:07]} f6 {[%emt 0:00:11]} 37. Nf3 {[%emt 0:00:52]} Bd6 {[%emt 0:00:25]} 38. Bb2 {[%emt 0:00:03]} g5 {[%emt 0:00:13]} 39. g4 {[%emt 0:00:05]} hxg4 {[%emt 0:00:06]} 40. hxg4 {[%emt 0:00:00]} Kd7 {[%emt 0:00:05]} 41. Nd2 {[%emt 0:00:10]} Ke6 {[%emt 0:00:02]} 42. Ne4 {[%emt 0:00:01]} Be7 {[%emt 0:00:03]} 43. Ng3 {[%emt 0:00:05]} Nb4+ {[%emt 0:00:13]} 44. Kd2 {[%emt 0:00:17]} Nd5 {[%emt 0:00:30]} 45. Nf5 {[%emt 0:00:14]} Bf8 {[%emt 0:00:09]} 46. Kd3 {[%emt 0:00:17]} Nb4+ {[%emt 0:00:03]} 47. Kd2 {[%emt 0:00:04]} Nd5 {[%emt 0:00:02]} 48. Ke2 {[%emt 0:00:34]} Bb4 {[%emt 0:00:14]} 49. Kd3 {[%emt 0:00:08]} Be1 {[%emt 0:00:13]} 50. f3 {[%emt 0:00:03]} Bb4 {[%emt 0:00:02]} 51. Ng3 {[%emt 0:00:18]} Be7 {[%emt 0:00:05]} 52. Bc3 {[%emt 0:00:12]} Bc5 {[%emt 0:00:12]} 53. Bd2 {[%emt 0:00:04]} Bb6 {[%emt 0:00:02]} 54. Ne4 {[%emt 0:00:17]} Bd8 {[%emt 0:00:08]} 55. Nc5+ {[%emt 0:00:08]} Kf7 {[%emt 0:00:10]} 56. Ke4 {[%emt 0:00:08]} Ne7 {[%emt 0:00:07]} 57. Bb4 {[%emt 0:00:16]} Nc6 {[%emt 0:00:06]} 58. Bc3 {[%emt 0:00:04]} Ne7 {[%emt 0:00:06]} 59. Bd2 {[%emt 0:00:11]} Bb6 {[%emt 0:00:04]} 60. Nd7 {[%emt 0:00:06]} Ba7 {[%emt 0:00:04]} 61. Bb4 {[%emt 0:00:01]} Nc6 {[%emt 0:00:06]} 62. Bc5 {[%emt 0:00:01]} Bxc5 {[%emt 0:00:03]} 63. Nxc5 {[%emt 0:00:00]} Ke7 {[%emt 0:00:07]} 64. Kf5 {[%emt 0:00:15]} Nb4 {[%emt 0:00:06]} 65. Nb7 {[%emt 0:00:08]} Nd5 {[%emt 0:00:01]} 66. Ke4 {[%emt 0:00:02]} Ke6 {[%emt 0:00:06]} 67. Nc5+ {[%emt 0:00:11]} Kd6 {[%emt 0:00:01]} 68. Nb7+ {[%emt 0:00:02]} Ke6 {[%emt 0:00:01]} 69. Nc5+ {[%emt 0:00:07]} Kd6 {[%emt 0:00:01]} 70. Nd3 {[%emt 0:00:01]} Ke6 {[%emt 0:00:06]} 71. Nc1 {[%emt 0:00:06]} Nc3+ {[%emt 0:00:18]} 72. Kd3 {[%emt 0:00:02]} Nd5 {[%emt 0:00:01]} 73. Ne2 {[%emt 0:00:01]} Nb4+ {[%emt 0:00:09]} 74. Ke4 {[%emt 0:00:05]} Nd5 {[%emt 0:00:01]} 75. Ng3 {[%emt 0:00:03]} Ne7 {[%emt 0:00:07]} 76. Kd3 {[%emt 0:00:07]} Nc6 {[%emt 0:00:09]} 77. Ne4 {[%emt 0:00:05]} Nb4+ {[%emt 0:00:03]} 78. Kd2 {[%emt 0:00:06]} Nd5 {[%emt 0:00:01]} 79. Ke2 {[%emt 0:00:04]} Kd7 {[%emt 0:00:10]} 80. Kd3 {[%emt 0:00:03]} Ke6 {[%emt 0:00:03]} 81. Kd2 {[%emt 0:00:18]} Kd7 {[%emt 0:00:08]} 82. Nc3 {[%emt 0:00:01]} Nc7 {[%emt 0:00:03]} 83. Kd3 {[%emt 0:00:04]} Kd6 {[%emt 0:00:05]} 84. Ke4 {[%emt 0:00:11]} Kc5 {[%emt 0:00:06]} 85. Kf5 {[%emt 0:00:03]} Kb4 {[%emt 0:00:01]} 86. Nxb5 {[%emt 0:00:06]} Kxb5 {[%emt 0:00:10]} 87. Kxf6 {[%emt 0:00:01]} Nd5+ {[%emt 0:00:03]} 88. Kxe5 {[%emt 0:00:05]} Nxe3 {[%emt 0:00:02]} 89. Kf6 {[%emt 0:00:01]} Kc5 {[%emt 0:00:03]} 90. Kxg5 {[%emt 0:00:02]} Kd6 {[%emt 0:00:03]} 91. Kf6 {[%emt 0:00:07]} Nd5+ {[%emt 0:00:01]} 92. Kf7 {[%emt 0:00:05]} Ke5 {[%emt 0:00:08]} 93. g5 {[%emt 0:00:03]} 1-0

[Event "European Online Club-ch-G 2021"]
[Site "Online"]
[Date "2021.03.27"]
[Round "1.18"]
[White "Persanyi, Barnabas"]
[Black "Greet, Andrew N"]
[Result "1/2-1/2"]
[ECO "A11"]
[WhiteElo "2364"]
[BlackElo "2417"]
[Annotator "NA"]
[PlyCount "89"]
[EventDate "2021.03.27"]
[EventType "team-tourn"]
[EventCountry "NET"]
[SourceTitle "playchess.com"]
[Source "ChessBase"]
[SourceQuality "1"]
[TimeControl "900+5"]

1. Nf3 {[%emt 0:00:00]} d5 {[%emt 0:00:05]} 2. g3 {[%emt 0:00:04]} Bg4 {[%emt 0:00:04]} 3. Bg2 {[%emt 0:00:04]} Nd7 {[%emt 0:00:03]} 4. c4 {[%emt 0:00:45]} e6 {[%emt 0:00:22]} 5. O-O {[%emt 0:00:34]} c6 {[%emt 0:00:14]} 6. d3 {[%emt 0:00:30]} Bxf3 {[%emt 0:01:52]} 7. Bxf3 {[%emt 0:00:18]} dxc4 {[%emt 0:00:06]} 8. dxc4 {[%emt 0:00:13]} Ne5 {[%emt 0:00:04]} 9. Nd2 {[%emt 0:00:48]} Nxf3+ {[%emt 0:00:16]} 10. Nxf3 {[%emt 0:00:06]} Nf6 {[%emt 0:00:14]} 11. b3 {[%emt 0:00:41]} Bc5 {[%emt 0:01:12]} 12. Bb2 {[%emt 0:00:21]} Qxd1 {[%emt 0:01:06]} 13. Rfxd1 {[%emt 0:00:16]} Ke7 {[%emt 0:00:07]} 14. e3 {[%emt 0:00:25]} Rhd8 {[%emt 0:01:07]} 15. Ne5 {[%emt 0:01:44]} Ne8 {[%emt 0:03:18]} 16. Kf1 {[%emt 0:00:40]} f6 {[%emt 0:00:40]} 17. Nd3 {[%emt 0:00:11]} Bd6 {[%emt 0:00:04]} 18. Ke2 {[%emt 0:01:51]} e5 {[%emt 0:01:54]} 19. e4 {[%emt 0:01:33]} Rd7 {[%emt 0:00:35]} 20. Rd2 {[%emt 0:01:09]} Rad8 {[%emt 0:00:09]} 21. Rad1 {[%emt 0:00:02]} g6 {[%emt 0:01:12]} 22. f4 {[%emt 0:00:34]} exf4 {[%emt 0:00:12]} 23. gxf4 {[%emt 0:00:12]} b6 {[%emt 0:00:23]} 24. e5 {[%emt 0:00:55]} fxe5 {[%emt 0:00:06]} 25. fxe5 {[%emt 0:00:06]} Bc7 {[%emt 0:00:32]} 26. Nb4 {[%emt 0:00:12]} Rxd2+ {[%emt 0:00:09]} 27. Rxd2 {[%emt 0:00:01]} Rxd2+ {[%emt 0:00:05]} 28. Kxd2 {[%emt 0:00:00]} Kd7 {[%emt 0:00:05]} 29. Ke2 {[%emt 0:00:00]} Ng7 {[%emt 0:00:17]} 30. Kf3 {[%emt 0:00:20]} Ne6 {[%emt 0:00:07]} 31. Nd3 {[%emt 0:00:15]} Bd8 {[%emt 0:00:12]} 32. Bc1 {[%emt 0:00:13]} b5 {[%emt 0:00:23]} 33. cxb5 {[%emt 0:00:08]} cxb5 {[%emt 0:00:02]} 34. Be3 {[%emt 0:00:02]} Bb6 {[%emt 0:00:12]} 35. Bxb6 {[%emt 0:00:11]} axb6 {[%emt 0:00:01]} 36. Ke4 {[%emt 0:00:03]} Ng5+ {[%emt 0:00:16]} 37. Kd5 {[%emt 0:00:05]} Ne6 {[%emt 0:00:02]} 38. b4 {[%emt 0:00:16]} Nc7+ {[%emt 0:00:02]} 39. Ke4 {[%emt 0:00:02]} Ne6 {[%emt 0:00:12]} 40. Nf2 {[%emt 0:00:20]} Kc6 {[%emt 0:00:03]} 41. Ng4 {[%emt 0:00:08]} Ng5+ {[%emt 0:00:03]} 42. Kf4 {[%emt 0:00:05]} Ne6+ {[%emt 0:00:02]} 43. Ke4 {[%emt 0:00:01]} Ng5+ {[%emt 0:00:01]} 44. Kf4 {[%emt 0:00:17]} Ne6+ {[%emt 0:00:02]} 45. Ke4 {[%emt 0:00:11]} 1/2-1/2

[Event "European Online Club-ch-G 2021"]
[Site "Online"]
[Date "2021.03.27"]
[Round "1.19"]
[White "Houska, Jovanka"]
[Black "Krstulovic, Alex"]
[Result "1/2-1/2"]
[ECO "D12"]
[WhiteElo "2381"]
[BlackElo "2387"]
[Annotator "NA"]
[PlyCount "61"]
[EventDate "2021.03.27"]
[EventType "team-tourn"]
[EventCountry "NET"]
[SourceTitle "playchess.com"]
[Source "ChessBase"]
[SourceQuality "1"]
[TimeControl "900+5"]

1. d4 {[%emt 0:00:00]} d5 {[%emt 0:00:03]} 2. Nf3 {[%emt 0:00:03]} Nf6 {[%emt 0:00:03]} 3. c4 {[%emt 0:00:01]} c6 {[%emt 0:00:03]} 4. e3 {[%emt 0:00:02]} Bf5 {[%emt 0:00:01]} 5. Nc3 {[%emt 0:00:03]} e6 {[%emt 0:00:02]} 6. Nh4 {[%emt 0:00:03]} Bg6 {[%emt 0:00:01]} 7. Nxg6 {[%emt 0:00:38]} hxg6 {[%emt 0:00:29]} 8. Bd3 {[%emt 0:00:22]} Nbd7 {[%emt 0:00:39]} 9. h3 {[%emt 0:01:02]} Bd6 {[%emt 0:00:22]} 10. O-O {[%emt 0:00:03]} Qe7 {[%emt 0:00:22]} 11. e4 {[%emt 0:01:38]} dxe4 {[%emt 0:00:13]} 12. Nxe4 {[%emt 0:00:03]} Nxe4 {[%emt 0:00:01]} 13. Bxe4 {[%emt 0:00:02]} Nf6 {[%emt 0:00:01]} 14. Bg5 {[%emt 0:01:49]} Rh5 {[%emt 0:00:30]} 15. Bxf6 {[%emt 0:00:13]} Qxf6 {[%emt 0:00:48]} 16. Re1 {[%emt 0:00:20]} O-O-O {[%emt 0:02:07]} 17. Qf3 {[%emt 0:00:38]} Qxf3 {[%emt 0:00:25]} 18. Bxf3 {[%emt 0:00:03]} Rh4 {[%emt 0:00:01]} 19. Rad1 {[%emt 0:03:29]} Bb4 {[%emt 0:03:33]} 20. Re4 {[%emt 0:00:04]} Rxe4 {[%emt 0:00:01]} 21. Bxe4 {[%emt 0:00:01]} e5 {[%emt 0:00:01]} 22. d5 {[%emt 0:00:03]} f5 {[%emt 0:00:02]} 23. Bc2 {[%emt 0:00:36]} cxd5 {[%emt 0:00:12]} 24. Rxd5 {[%emt 0:00:27]} Rxd5 {[%emt 0:00:03]} 25. cxd5 {[%emt 0:00:01]} Kd7 {[%emt 0:00:02]} 26. g4 {[%emt 0:00:02]} e4 {[%emt 0:00:27]} 27. Ba4+ {[%emt 0:00:45]} Kd6 {[%emt 0:00:09]} 28. Be8 {[%emt 0:00:02]} Kxd5 {[%emt 0:00:29]} 29. Bxg6 {[%emt 0:00:06]} fxg4 {[%emt 0:00:31]} 30. hxg4 {[%emt 0:00:02]} Bd2 {[%emt 0:00:04]} 31. Kf1 {[%emt 0:00:03]} 1/2-1/2

[Event "European Online Club-ch-G 2021"]
[Site "Online"]
[Date "2021.03.27"]
[Round "1.20"]
[White "Karacsonyi, Gellert"]
[Black "Sukandar, Irine Kharisma"]
[Result "0-1"]
[ECO "B32"]
[WhiteElo "2321"]
[BlackElo "2413"]
[Annotator "NA"]
[PlyCount "80"]
[EventDate "2021.03.27"]
[EventType "team-tourn"]
[EventCountry "NET"]
[SourceTitle "playchess.com"]
[Source "ChessBase"]
[SourceQuality "1"]
[TimeControl "900+5"]

1. e4 {[%emt 0:00:00]} c5 {[%emt 0:00:15]} 2. Nf3 {[%emt 0:00:03]} Nc6 {[%emt 0:00:05]} 3. d4 {[%emt 0:00:02]} cxd4 {[%emt 0:00:02]} 4. Nxd4 {[%emt 0:00:02]} e5 {[%emt 0:00:02]} 5. Nb5 {[%emt 0:00:06]} d6 {[%emt 0:00:10]} 6. N1c3 {[%emt 0:00:04]} a6 {[%emt 0:00:18]} 7. Na3 {[%emt 0:00:02]} Be6 {[%emt 0:00:02]} 8. Nc4 {[%emt 0:00:07]} Rc8 {[%emt 0:00:10]} 9. Be3 {[%emt 0:00:03]} Nf6 {[%emt 0:01:30]} 10. Nb6 {[%emt 0:00:30]} Rb8 {[%emt 0:00:14]} 11. Be2 {[%emt 0:00:27]} Be7 {[%emt 0:00:08]} 12. O-O {[%emt 0:00:05]} O-O {[%emt 0:00:03]} 13. f3 {[%emt 0:01:08]} Nd7 {[%emt 0:00:43]} 14. Ncd5 {[%emt 0:01:13]} Bg5 {[%emt 0:00:50]} 15. Bf2 {[%emt 0:00:51]} f5 {[%emt 0:00:25]} 16. exf5 {[%emt 0:00:30]} Bxf5 {[%emt 0:00:09]} 17. c3 {[%emt 0:00:37]} Kh8 {[%emt 0:00:12]} 18. a4 {[%emt 0:00:23]} Nf6 {[%emt 0:00:54]} 19. Bd3 {[%emt 0:01:09]} e4 {[%emt 0:01:36]} 20. Nxf6 {[%emt 0:03:15]} exd3 {[%emt 0:01:08]} 21. Nfd5 {[%emt 0:00:02]} Bg6 {[%emt 0:00:16]} 22. Kh1 {[%emt 0:00:33]} Ne5 {[%emt 0:00:50]} 23. Bd4 {[%emt 0:00:07]} Bh6 {[%emt 0:00:23]} 24. f4 {[%emt 0:00:10]} Nc6 {[%emt 0:00:11]} 25. Bg1 {[%emt 0:00:48]} Be4 {[%emt 0:00:21]} 26. Qg4 {[%emt 0:00:29]} Ne7 {[%emt 0:01:48]} 27. Nxe7 {[%emt 0:01:24]} Qxe7 {[%emt 0:00:03]} 28. Bd4 {[%emt 0:00:32]} Rbe8 {[%emt 0:00:19]} 29. Rae1 {[%emt 0:00:59]} Qf7 {[%emt 0:01:23]} 30. Be3 {[%emt 0:00:19]} Bf5 {[%emt 0:00:19]} 31. Qf3 {[%emt 0:00:12]} Qb3 {[%emt 0:00:26]} 32. Qf2 {[%emt 0:00:33]} Bg4 {[%emt 0:00:31]} 33. Rg1 {[%emt 0:00:27]} Be2 {[%emt 0:00:29]} 34. g4 {[%emt 0:00:02]} Rxe3 {[%emt 0:00:38]} 35. Qxe3 {[%emt 0:00:03]} Bxf4 {[%emt 0:00:02]} 36. Rgf1 {[%emt 0:00:18]} Bxf1 {[%emt 0:00:45]} 37. Qxf4 {[%emt 0:00:01]} Rxf4 {[%emt 0:00:07]} 38. Re8+ {[%emt 0:00:05]} Qg8 {[%emt 0:00:01]} 39. Rxg8+ {[%emt 0:00:04]} Kxg8 {[%emt 0:00:03]} 40. Nd5 {[%emt 0:00:02]} d2 {[%emt 0:00:03]} 0-1

[Event "European Online Club-ch-G 2021"]
[Site "Online"]
[Date "2021.03.27"]
[Round "2.1"]
[White "Altun, Arda"]
[Black "Persanyi, Barnabas"]
[Result "1-0"]
[ECO "B31"]
[WhiteElo "2074"]
[BlackElo "2364"]
[Annotator "NA"]
[PlyCount "99"]
[EventDate "2021.03.27"]
[EventType "team-tourn"]
[EventCountry "NET"]
[SourceTitle "playchess.com"]
[Source "ChessBase"]
[SourceQuality "1"]
[TimeControl "900+5"]

1. e4 {[%emt 0:00:00]} c5 {[%emt 0:00:03]} 2. Nf3 {[%emt 0:00:03]} Nc6 {[%emt 0:00:01]} 3. Bb5 {[%emt 0:00:07]} g6 {[%emt 0:00:06]} 4. O-O {[%emt 0:00:05]} Bg7 {[%emt 0:00:03]} 5. Re1 {[%emt 0:00:13]} e5 {[%emt 0:00:05]} 6. c3 {[%emt 0:00:04]} Nge7 {[%emt 0:00:06]} 7. d3 {[%emt 0:00:13]} O-O {[%emt 0:00:07]} 8. Nbd2 {[%emt 0:00:09]} d6 {[%emt 0:00:31]} 9. h3 {[%emt 0:00:13]} a6 {[%emt 0:00:04]} 10. Ba4 {[%emt 0:00:03]} b5 {[%emt 0:00:45]} 11. Bb3 {[%emt 0:00:20]} h6 {[%emt 0:01:43]} 12. Nf1 {[%emt 0:00:08]} Kh7 {[%emt 0:00:04]} 13. Ng3 {[%emt 0:00:32]} Na5 {[%emt 0:00:55]} 14. Bc2 {[%emt 0:00:07]} Be6 {[%emt 0:00:22]} 15. d4 {[%emt 0:01:42]} Qc7 {[%emt 0:00:18]} 16. d5 {[%emt 0:00:22]} Bd7 {[%emt 0:00:03]} 17. b3 {[%emt 0:00:04]} c4 {[%emt 0:01:16]} 18. b4 {[%emt 0:00:06]} Nb7 {[%emt 0:00:03]} 19. a4 {[%emt 0:01:09]} a5 {[%emt 0:00:19]} 20. Be3 {[%emt 0:02:26]} axb4 {[%emt 0:01:56]} 21. cxb4 {[%emt 0:00:05]} bxa4 {[%emt 0:00:03]} 22. Bxa4 {[%emt 0:00:04]} f5 {[%emt 0:00:39]} 23. exf5 {[%emt 0:00:44]} gxf5 {[%emt 0:00:04]} 24. Nh5 {[%emt 0:01:58]} f4 {[%emt 0:02:09]} 25. Bc2+ {[%emt 0:00:45]} Kg8 {[%emt 0:02:14]} 26. Rxa8 {[%emt 0:00:45]} Rxa8 {[%emt 0:00:03]} 27. Bxf4 {[%emt 0:00:20]} Rf8 {[%emt 0:00:43]} 28. Be3 {[%emt 0:00:22]} Nf5 {[%emt 0:00:26]} 29. Nxg7 {[%emt 0:00:14]} Kxg7 {[%emt 0:00:10]} 30. Nd2 {[%emt 0:00:52]} Rf6 {[%emt 0:01:11]} 31. Qh5 {[%emt 0:00:56]} Qc8 {[%emt 0:00:38]} 32. Qg4+ {[%emt 0:01:26]} Rg6 {[%emt 0:00:08]} 33. Qxc4 {[%emt 0:00:04]} Qxc4 {[%emt 0:00:18]} 34. Nxc4 {[%emt 0:00:04]} Rf6 {[%emt 0:00:01]} 35. Ra1 {[%emt 0:00:13]} Rf7 {[%emt 0:00:03]} 36. Ra7 {[%emt 0:00:16]} Bb5 {[%emt 0:00:01]} 37. Bxf5 {[%emt 0:00:21]} Bxc4 {[%emt 0:00:02]} 38. Be6 {[%emt 0:00:07]} Re7 {[%emt 0:00:03]} 39. Bb6 {[%emt 0:00:17]} Kf6 {[%emt 0:00:15]} 40. Be3 {[%emt 0:00:03]} Kg7 {[%emt 0:00:02]} 41. g3 {[%emt 0:00:03]} Bb3 {[%emt 0:00:03]} 42. h4 {[%emt 0:00:04]} Bc4 {[%emt 0:00:11]} 43. Kh2 {[%emt 0:00:05]} Bb3 {[%emt 0:00:01]} 44. b5 {[%emt 0:00:02]} Bc4 {[%emt 0:00:09]} 45. b6 {[%emt 0:00:03]} Bb3 {[%emt 0:00:02]} 46. Kg2 {[%emt 0:00:06]} Bc4 {[%emt 0:00:05]} 47. Kf3 {[%emt 0:00:04]} Kg6 {[%emt 0:00:03]} 48. Ke4 {[%emt 0:00:08]} Kg7 {[%emt 0:00:06]} 49. Bc8 {[%emt 0:00:10]} Nc5+ {[%emt 0:00:11]} 50. Bxc5 {[%emt 0:00:03]} 1-0

[Event "European Online Club-ch-G 2021"]
[Site "Online"]
[Date "2021.03.27"]
[Round "2.2"]
[White "Krstulovic, Alex"]
[Black "Danaci, Ege"]
[Result "1-0"]
[ECO "A00"]
[WhiteElo "2387"]
[BlackElo "1996"]
[Annotator "NA"]
[PlyCount "47"]
[EventDate "2021.03.27"]
[EventType "team-tourn"]
[EventCountry "NET"]
[SourceTitle "playchess.com"]
[Source "ChessBase"]
[SourceQuality "1"]
[TimeControl "900+5"]

1. Nc3 {[%emt 0:00:00]} c5 {[%emt 0:00:25]} 2. e3 {[%emt 0:00:12]} d5 {[%emt 0:00:59]} 3. b3 {[%emt 0:00:03]} Nf6 {[%emt 0:00:02]} 4. Bb2 {[%emt 0:00:02]} Nc6 {[%emt 0:00:10]} 5. Bb5 {[%emt 0:00:04]} Qc7 {[%emt 0:00:04]} 6. Nf3 {[%emt 0:00:44]} e6 {[%emt 0:00:06]} 7. O-O {[%emt 0:00:36]} Bd6 {[%emt 0:00:04]} 8. d3 {[%emt 0:00:19]} O-O {[%emt 0:00:09]} 9. Bxc6 {[%emt 0:01:05]} Qxc6 {[%emt 0:00:28]} 10. e4 {[%emt 0:00:03]} Bc7 {[%emt 0:02:58]} 11. Qe2 {[%emt 0:00:24]} b5 {[%emt 0:00:15]} 12. a3 {[%emt 0:06:29]} Bb7 {[%emt 0:00:07]} 13. e5 {[%emt 0:00:26]} Nd7 {[%emt 0:00:10]} 14. d4 {[%emt 0:01:09]} a6 {[%emt 0:00:59]} 15. Rad1 {[%emt 0:00:50]} Bb6 {[%emt 0:01:02]} 16. Rfe1 {[%emt 0:00:32]} Rac8 {[%emt 0:00:15]} 17. dxc5 {[%emt 0:00:08]} Nxc5 {[%emt 0:00:34]} 18. Nd4 {[%emt 0:00:03]} Qc7 {[%emt 0:00:01]} 19. Qg4 {[%emt 0:00:30]} Ne4 {[%emt 0:01:43]} 20. Nce2 {[%emt 0:01:00]} Qxe5 {[%emt 0:00:29]} 21. Ng3 {[%emt 0:00:02]} Qg5 {[%emt 0:01:03]} 22. Rxe4 {[%emt 0:00:06]} Qxg4 {[%emt 0:00:18]} 23. Rxg4 {[%emt 0:00:03]} f5 {[%emt 0:01:56]} 24. Ndxf5 {[%emt 0:00:11]} 1-0